bitfinex-derivatives/quotes_SOLF0:USTF0_20241029
["timestamp","ask_amount","ask_price","bid_price","bid_amount"]
[1730191338538,9.26050915,181.73,181.61,9.26050915]
[1730191338946,9.26050915,181.7,181.63,2.7549]
[1730191339243,12.03407463,181.7,181.63,2.7549]
[1730191339442,12.03407463,181.7,181.6,1.1899]
[1730191339839,12.03407463,181.7,181.61,2.7551]
[1730191340744,12.03407463,181.7,181.6,1.1899]
[1730191340942,9.26050915,181.68,181.6,1.1899]
[1730191341346,11.94929428,181.68,181.6,1.1899]
[1730191341546,11.94929428,181.68,181.61,2.7551]
[1730191342333,9.26050915,181.68,181.61,2.7551]
[1730191342535,9.26050915,181.7,181.6,1.1899]
[1730191342747,2.70699608,181.69,181.63,2.7548]
[1730191342947,2.70699608,181.69,181.6,1.1899]
[1730191344045,9.26050915,181.7,181.6,1.1899]
[1730191344547,12.0309203,181.7,181.6,1.1899]
[1730191344947,12.0309203,181.7,181.6,3.9451]
[1730191346044,12.0309203,181.7,181.6,3.9452]
[1730191346442,12.0309203,181.7,181.6,1.1899]
[1730191346647,9.26050915,181.68,181.6,1.1899]
[1730191346848,9.26050915,181.65,181.58,2.7556]
[1730191347645,9.26050915,181.65,181.57,2.5443]
[1730191347948,9.26050915,181.65,181.57,1.2747]
[1730191349550,2.80790875,181.66,181.53,1.2512]
[1730191349852,9.26050915,181.66,181.54,9.26050915]
[1730191350062,12.02368573,181.66,181.54,10.45800915]
[1730191350350,12.02368573,181.66,181.58,2.7556]
[1730191350745,12.02368573,181.66,181.55,1.242]
[1730191350952,12.02368573,181.66,181.57,2.7557]
[1730191351449,2.76317658,181.66,181.55,1.242]
[1730191351656,46.20186509,181.69,181.57,9.26050915]
[1730191351851,48.95842262,181.69,181.57,9.26050915]
[1730191352258,48.95842262,181.69,181.59,2.7554]
[1730191352560,32.38842262,181.69,181.57,9.26050915]
[1730191352749,32.38842262,181.69,181.61,2.7551]
[1730191355657,32.38842262,181.69,181.6,2.7553]
[1730191358762,32.38842262,181.69,181.57,9.26050915]
[1730191358953,32.38842262,181.69,181.59,2.7554]
[1730191359453,32.38842262,181.69,181.6,2.7553]
[1730191361758,32.38842262,181.69,181.59,2.7554]
[1730191362156,12.01706668,181.69,181.59,2.7554]
[1730191362456,5.92960226,181.67,181.61,5.92960226]
[1730191362656,5.92960226,181.68,181.62,5.92960226]
[1730191365456,5.92960226,181.66,181.61,5.92960226]
[1730191366155,8.62045845,181.66,181.61,5.92960226]
[1730191367660,8.62045845,181.66,181.58,5.92960226]
[1730191367661,5.92960226,181.63,181.58,5.92960226]
[1730191368163,5.92960226,181.62,181.55,1.242]
[1730191368367,5.92960226,181.62,181.55,7.17160226]
[1730191368670,5.92960226,181.62,181.55,9.92760226]
[1730191368968,5.92960226,181.6,181.55,7.17160226]
[1730191370166,5.92960226,181.58,181.53,1.2512]
[1730191370571,9.27416544,181.61,181.53,1.2512]
[1730191371564,9.27416544,181.61,181.53,4.0075]
[1730191371767,9.27416544,181.63,181.53,4.0075]
[1730191373366,9.27416544,181.61,181.53,4.0075]
[1730191373957,9.27416544,181.61,181.53,1.2512]
[1730191374164,9.27416544,181.61,181.52,2.7565]
[1730191376475,9.27416544,181.61,181.53,2.7564]
[1730191377675,9.27416544,181.61,181.54,2.7561]
[1730191379075,9.27416544,181.61,181.51,9.27416544]
[1730191379275,9.27416544,181.61,181.55,2.7561]
[1730191379970,9.27416544,181.63,181.53,9.27416544]
[1730191380270,9.27416544,181.63,181.46,346.5466]
[1730191380271,2.78961807,181.66,181.55,9.27416544]
[1730191380574,9.27416544,181.67,181.55,9.27416544]
[1730191380963,11.98607236,181.67,181.55,9.27416544]
[1730191381172,2.71190692,181.67,181.61,9.27416544]
[1730191381474,9.27416544,181.72,181.61,9.27416544]
[1730191381673,16.55,181.74,181.62,2.755]
[1730191381870,9.27416544,181.71,181.62,2.755]
[1730191382273,16.55,181.75,181.62,2.755]
[1730191382575,9.27416544,181.72,181.62,2.755]
[1730191382970,9.27416544,181.72,181.61,9.27416544]
[1730191383169,16.55,181.79,181.61,9.27416544]
[1730191383465,9.27416544,181.74,181.62,2.4268]
[1730191383667,16.55,181.79,181.65,2.7545]
[1730191383883,16.55,181.79,181.62,2.4268]
[1730191383884,9.27416544,181.74,181.62,2.4268]
[1730191384383,9.27416544,181.74,181.64,2.7546]
[1730191384682,9.27416544,181.74,181.62,3.6101]
[1730191384872,9.27416544,181.71,181.62,3.6101]
[1730191385077,9.27416544,181.71,181.62,2.4268]
[1730191387085,2.76551277,181.7,181.62,2.4268]
[1730191388387,2.76551277,181.7,181.63,2.7548]
[1730191389879,2.76551277,181.7,181.62,5.1818]
[1730191390484,9.27416544,181.71,181.62,2.4268]
[1730191391091,9.27416544,181.69,181.56,1.1833]
[1730191391282,12.09861725,181.69,181.56,12.95096544]
[1730191391682,9.27416544,181.66,181.58,2.7556]
[1730191392191,9.27416544,181.64,181.56,3.6768]
[1730191392388,2.68990159,181.63,181.56,3.6768]
[1730191392684,9.27416544,181.64,181.45,1.2195]
[1730191392889,9.27416544,181.62,181.5,9.27416544]
[1730191394790,9.27416544,181.59,181.47,9.27416544]
[1730191395785,9.27416544,181.59,181.51,2.7566]
[1730191397490,9.27416544,181.59,181.49,2.7569]
[1730191397793,9.27416544,181.59,181.46,9.27416544]
[1730191397982,9.27416544,181.59,181.5,2.7568]
[1730191399285,16.55,181.71,181.49,9.27416544]
[1730191399499,9.27416544,181.69,181.55,9.27416544]
[1730191399682,9.27416544,181.69,181.57,9.27416544]
[1730191400081,9.27416544,181.69,181.59,2.7554]
[1730191402792,9.27416544,181.69,181.6,2.7553]
[1730191403095,9.27416544,181.69,181.57,9.27416544]
[1730191403289,9.27416544,181.69,181.59,2.7555]
[1730191403589,9.27416544,181.69,181.56,2.4274]
[1730191403798,9.27416544,181.69,181.58,2.7555]
[1730191404298,16.55,181.76,181.6,9.27416544]
[1730191404593,9.27416544,181.71,181.58,344.0]
[1730191404894,9.27416544,181.71,181.59,2.7555]
[1730191406783,9.27416544,181.69,181.58,346.7556]
[1730191408185,9.27416544,181.69,181.58,2.7556]
[1730191410890,46.19552138,181.72,181.58,2.7556]
[1730191410891,9.27416544,181.66,181.58,2.7556]
[1730191411300,9.27416544,181.66,181.59,2.7554]
[1730191411686,9.27416544,181.66,181.57,1.1788]
[1730191411890,9.27416544,181.66,181.57,3.9345]
[1730191412095,9.27416544,181.66,181.57,1.1788]
[1730191413086,9.27416544,181.66,181.57,3.9346]
[1730191413598,9.27416544,181.64,181.57,1.1788]
[1730191414696,9.27416544,181.59,181.48,344.0]
[1730191414901,9.27416544,181.59,181.49,2.4662]
[1730191415293,9.27416544,181.59,181.52,2.7565]
[1730191415496,9.27416544,181.59,181.49,2.4662]
[1730191416703,9.27416544,181.59,181.51,2.7566]
[1730191417403,9.27416544,181.59,181.52,2.7565]
[1730191418203,9.27416544,181.59,181.49,2.4662]
[1730191418404,9.27416544,181.56,181.49,2.4662]
[1730191419003,9.27416544,181.56,181.5,2.7567]
[1730191421301,9.27416544,181.59,181.49,2.4662]
[1730191421507,9.27416544,181.59,181.52,2.7565]
[1730191424405,5.93057467,181.55,181.52,2.7565]
[1730191425413,5.93057467,181.55,181.51,2.7566]
[1730191428209,0.3502,181.63,181.55,2.756]
[1730191428399,5.93057467,181.6,181.55,2.756]
[1730191428808,5.93057467,181.6,181.54,8.68677467]
[1730191429107,5.93057467,181.58,181.54,2.7562]
[1730191430817,5.93057467,181.59,181.54,2.7562]
[1730191433602,0.3527,181.64,181.54,2.7562]
[1730191433821,5.93057467,181.66,181.59,5.93057467]
[1730191434006,5.93057467,181.67,181.6,5.93057467]
[1730191434202,23.35840002,181.73,181.6,5.93057467]
[1730191434203,5.93057467,181.65,181.6,5.93057467]
[1730191434404,5.93057467,181.65,181.59,5.93057467]
[1730191435010,5.93057467,181.64,181.59,8.68597467]
[1730191435913,5.93057467,181.64,181.59,2.7554]
[1730191436918,5.93057467,181.62,181.52,344.0]
[1730191437122,5.93057467,181.61,181.52,344.0]
[1730191437308,5.93057467,181.61,181.54,5.93057467]
[1730191437617,5.93057467,181.61,181.55,2.756]
[1730191437817,5.93057467,181.59,181.55,2.756]
[1730191438211,5.93057467,181.59,181.56,2.7559]
[1730191438409,9.26961034,181.64,181.56,2.7559]
[1730191439115,9.26961034,181.64,181.57,2.7558]
[1730191439819,9.26961034,181.64,181.52,9.26961034]
[1730191440023,9.26961034,181.66,181.54,9.26961034]
[1730191440522,9.26961034,181.66,181.58,2.7555]
[1730191441726,9.26961034,181.66,181.61,2.7551]
[1730191442018,9.26961034,181.68,181.57,9.26961034]
[1730191442313,9.26961034,181.68,181.61,2.7551]
[1730191442915,23.35840002,181.73,181.58,4.1672]
[1730191443217,9.26961034,181.69,181.58,4.1672]
[1730191443616,9.26961034,181.69,181.63,2.7548]
[1730191444918,9.26961034,181.69,181.62,2.755]
[1730191445610,9.26961034,181.67,181.6,2.7553]
[1730191446619,9.26961034,181.67,181.59,2.7554]
[1730191446822,9.26961034,181.67,181.58,4.1672]
[1730191447712,17.6057,181.73,181.58,4.1672]
[1730191447713,9.26961034,181.69,181.58,4.1672]
[1730191448519,9.26961034,181.69,181.62,2.755]
[1730191449109,21.07385594,181.73,181.65,2.7544]
[1730191449309,21.07385594,181.73,181.61,9.26961034]
[1730191449310,9.26961034,181.73,181.61,9.26961034]
[1730191449815,9.26961034,181.71,181.61,9.26961034]
[1730191450018,9.26961034,181.71,181.64,2.7546]
[1730191450232,9.26961034,181.71,181.58,357.43681034]
[1730191450413,9.26961034,181.71,181.63,2.7548]
[1730191451615,9.26961034,181.71,181.58,357.43681034]
[1730191451819,9.26961034,181.71,181.64,2.7547]
[1730191452011,36.92135594,181.76,181.61,9.26961034]
[1730191452012,9.26961034,181.73,181.61,9.26961034]
[1730191452621,20.37135594,181.76,181.58,348.1672]
[1730191452622,9.26961034,181.76,181.63,9.26961034]
[1730191453624,9.26961034,181.73,181.66,2.7543]
[1730191458023,9.26961034,181.76,181.65,9.26961034]
[1730191458227,9.26961034,181.76,181.69,2.7539]
[1730191458537,9.26961034,181.76,181.66,2.6604]
[1730191459535,9.26961034,181.76,181.69,2.754]
[1730191461139,9.26961034,181.78,181.69,2.7539]
[1730191461338,9.26961034,181.78,181.66,3.9813]
[1730191461638,9.26961034,181.78,181.68,9.26961034]
[1730191462031,9.26961034,181.78,181.71,2.7536]
[1730191462434,5.92865533,181.76,181.71,2.7536]
[1730191467732,5.92865533,181.73,181.66,3.9813]
[1730191468031,5.92865533,181.73,181.67,5.92865533]
[1730191468239,5.92865533,181.73,181.69,2.7539]
[1730191469340,5.92865533,181.73,181.67,5.92865533]
[1730191469534,5.92865533,181.73,181.68,2.754]
[1730191470440,5.92865533,181.71,181.68,2.754]
[1730191471943,5.92865533,181.7,181.66,5.4148]
[1730191472635,5.92865533,181.7,181.65,2.7545]
[1730191472836,33.1,181.81,181.62,5.92865533]
[1730191473037,5.92865533,181.7,181.64,5.92865533]
[1730191473439,33.1,181.81,181.64,5.92865533]
[1730191473641,5.92865533,181.7,181.64,5.92865533]
[1730191474039,5.92865533,181.7,181.66,2.7544]
[1730191476731,5.92865533,181.7,181.67,2.7542]
[1730191476933,5.92865533,181.7,181.64,5.92865533]
[1730191477643,5.92865533,181.7,181.67,2.7542]
[1730191479547,5.92865533,181.71,181.67,2.7542]
[1730191480545,16.55,181.79,181.67,2.7542]
[1730191480751,5.92865533,181.71,181.67,2.7542]
[1730191486043,5.92865533,181.7,181.67,2.7542]
[1730191486240,5.92865533,181.68,181.63,2.7548]
[1730191486435,5.92865533,181.66,181.63,2.7548]
[1730191486644,5.92865533,181.66,181.61,8.61375533]
[1730191486843,5.92865533,181.66,181.64,2.7546]
[1730191487550,5.92865533,181.68,181.64,2.7546]
[1730191487942,22.30016523,181.77,181.62,5.92865533]
[1730191488149,5.92865533,181.69,181.65,2.7545]
[1730191489951,5.92865533,181.69,181.64,2.7547]
[1730191491241,42.67152117,181.77,181.64,2.7547]
[1730191491440,5.92865533,181.68,181.65,2.7545]
[1730191492852,42.67152117,181.77,181.64,5.92865533]
[1730191493154,5.92865533,181.69,181.64,5.92865533]
[1730191493450,5.92865533,181.68,181.63,5.92865533]
[1730191493652,20.37135594,181.77,181.65,8.68305533]
[1730191493847,5.92865533,181.71,181.65,5.92865533]
[1730191494149,20.37135594,181.78,181.65,5.92865533]
[1730191494351,20.37135594,181.79,181.67,5.92865533]
[1730191494558,20.37135594,181.81,181.71,5.92865533]
[1730191494860,20.37135594,181.81,181.61,346.6851]
[1730191494861,5.92865533,181.74,181.69,5.92865533]
[1730191495162,20.37135594,181.81,181.69,5.92865533]
[1730191495348,5.92865533,181.75,181.69,5.92865533]
[1730191495958,5.92865533,181.75,181.7,2.7537]
[1730191496453,21.44615594,181.82,181.7,2.7537]
[1730191496751,5.92865533,181.75,181.7,2.7537]
[1730191497158,20.37135594,181.81,181.7,2.7537]
[1730191497159,5.92865533,181.74,181.7,2.7537]
[1730191498252,5.92865533,181.71,181.61,344.0]
[1730191498458,5.92865533,181.67,181.62,5.92865533]
[1730191499254,20.37135594,181.79,181.65,2.7545]
[1730191499469,5.92865533,181.69,181.53,349.5125]
[1730191499756,5.92865533,181.67,181.61,5.92865533]
[1730191500058,16.55,181.78,181.53,344.0]
[1730191500253,5.92865533,181.7,181.64,5.92865533]
[1730191500647,5.92865533,181.7,181.64,8.68325533]
[1730191500849,5.92865533,181.67,181.56,344.0]
[1730191501050,5.92865533,181.67,181.61,8.68375533]
[1730191501250,5.92865533,181.67,181.61,5.92865533]
[1730191501661,5.92865533,181.67,181.62,2.7549]
[1730191501959,5.92865533,181.67,181.61,5.92865533]
[1730191502159,16.55,181.78,181.65,2.7544]
[1730191502352,5.92865533,181.7,181.65,2.7544]
[1730191502554,5.92865533,181.69,181.65,2.7544]
[1730191505253,5.92865533,181.67,181.56,344.0]
[1730191505458,5.92865533,181.65,181.62,2.7549]
[1730191506867,5.92865533,181.65,181.61,2.7551]
[1730191507165,5.92865533,181.65,181.56,344.0]
[1730191507166,5.92865533,181.62,181.56,349.92865533]
[1730191507468,5.92865533,181.62,181.6,2.7553]
[1730191508163,38.85095712,181.77,181.61,2.7551]
[1730191508369,5.92865533,181.68,181.61,5.92865533]
[1730191508761,5.92865533,181.66,181.62,2.7549]
[1730191508963,5.92865533,181.65,181.62,2.7549]
[1730191509762,5.92865533,181.63,181.59,2.7554]
[1730191510163,5.92865533,181.61,181.56,349.92865533]
[1730191510368,5.92865533,181.6,181.56,344.0]
[1730191510562,5.92865533,181.6,181.57,2.7557]
[1730191511763,5.92865533,181.58,181.55,2.7561]
[1730191512168,5.92865533,181.56,181.52,4.2168]
[1730191512371,1.0379,181.71,181.53,5.92865533]
[1730191512667,5.92865533,181.59,181.53,5.92865533]
[1730191513360,1.0379,181.71,181.55,2.756]
[1730191513567,5.92865533,181.6,181.55,2.756]
[1730191513959,5.92865533,181.6,181.56,2.7559]
[1730191516663,16.55,181.69,181.56,2.7559]
[1730191516868,5.92865533,181.6,181.56,2.7559]
[1730191517970,5.92865533,181.59,181.56,2.7559]
[1730191518171,5.92865533,181.59,181.54,5.92865533]
[1730191518372,5.92865533,181.59,181.55,2.756]
[1730191518672,5.92865533,181.56,181.52,2.7961]
[1730191518864,33.1,181.69,181.52,5.5526]
[1730191519068,5.92865533,181.54,181.52,5.5526]
[1730191521477,5.92865533,181.54,181.5,2.7567]
[1730191521670,5.92865533,181.54,181.48,5.92865533]
[1730191521870,5.92865533,181.53,181.46,2.7537]
[1730191522064,33.1,181.69,181.46,2.7537]
[1730191522265,5.92865533,181.52,181.46,8.68235533]
[1730191522472,5.92865533,181.52,181.49,2.757]
[1730191522780,5.92865533,181.53,181.48,5.92865533]
[1730191522972,5.92865533,181.54,181.48,5.92865533]
[1730191523180,5.92865533,181.54,181.5,2.7567]
[1730191524689,33.1,181.69,181.54,2.7562]
[1730191524881,5.92865533,181.6,181.53,5.92865533]
[1730191525185,5.92865533,181.58,181.54,2.7561]
[1730191526689,5.92865533,181.57,181.54,2.7561]
[1730191526887,5.92865533,181.57,181.46,346.7537]
[1730191527086,5.92865533,181.54,181.49,5.92865533]
[1730191527483,5.92865533,181.54,181.51,2.7566]
[1730191528479,5.92865533,181.54,181.46,346.7537]
[1730191528687,5.92865533,181.52,181.47,5.92865533]
[1730191528890,38.85357187,181.68,181.46,2.7537]
[1730191529091,5.92865533,181.5,181.46,2.7537]
[1730191529291,5.92865533,181.5,181.48,2.7571]
[1730191530489,38.85357187,181.68,181.48,2.7571]
[1730191530693,5.92865533,181.51,181.48,2.7571]
[1730191531287,5.92865533,181.51,181.46,2.7537]
[1730191531495,5.92865533,181.49,181.47,2.7573]
[1730191534801,5.92865533,181.48,181.43,344.0]
[1730191534993,5.92865533,181.45,181.43,344.0]
[1730191535796,5.92865533,181.45,181.44,2.7577]
[1730191536199,5.92865533,181.46,181.44,2.7577]
[1730191537103,5.92865533,181.46,181.45,2.7576]
[1730191537398,1.0427,181.57,181.44,5.92865533]
[1730191537695,5.92865533,181.5,181.44,5.92865533]
[1730191537896,5.92865533,181.5,181.48,2.7571]
[1730191538506,5.92865533,181.51,181.49,2.7569]
[1730191539592,5.92865533,181.5,181.49,2.7569]
[1730191540602,121.33611358,181.59,181.47,9.2699594]
[1730191540902,130.60607298,181.59,181.48,4.0215]
[1730191541205,121.33611358,181.59,181.5,9.2699594]
[1730191542500,121.33611358,181.59,181.55,2.7561]
[1730191543906,130.60607298,181.59,181.52,2.7564]
[1730191544109,9.2699594,181.57,181.52,2.7564]
[1730191545401,9.2699594,181.57,181.48,348.0215]
[1730191545805,9.2699594,181.57,181.52,2.7564]
[1730191547109,130.60607298,181.59,181.52,2.7564]
[1730191547909,130.60607298,181.59,181.48,4.0215]
[1730191548209,130.60607298,181.59,181.53,2.7564]
[1730191549006,130.60607298,181.59,181.57,2.7557]
[1730191549213,9.2699594,181.62,181.48,13.2914594]
[1730191549806,9.2699594,181.62,181.55,2.756]
[1730191556317,9.2699594,181.62,181.48,357.2914594]
[1730191556517,9.2699594,181.62,181.54,2.7562]
[1730191561719,9.2699594,181.57,181.5,2.7568]
[1730191561928,9.2699594,181.57,181.48,348.0215]
[1730191562509,5.92989585,181.55,181.5,5.92989585]
[1730191563216,5.92989585,181.55,181.51,2.7566]
[1730191564224,5.92989585,181.55,181.49,5.92989585]
[1730191564225,5.92989585,181.52,181.49,2.757]
[1730191564517,5.92989585,181.5,181.43,349.92989585]
[1730191564715,5.92989585,181.49,181.43,5.92989585]
[1730191564920,5.92989585,181.47,181.41,5.92989585]
[1730191565113,5.92989585,181.45,181.39,1.4184]
[1730191565314,5.92989585,181.45,181.39,7.34829585]
[1730191565513,5.92989585,181.45,181.41,2.7581]
[1730191565723,5.92989585,181.44,181.41,2.7581]
[1730191566219,16.55,181.57,181.4,5.92989585]
[1730191566420,9.27523795,181.49,181.43,2.7578]
[1730191567726,16.55,181.57,181.43,2.7578]
[1730191567925,9.27523795,181.45,181.31,420.78959556]
[1730191568219,9.27523795,181.41,181.32,3.9983]
[1730191568419,9.27523795,181.41,181.36,2.7588]
[1730191569328,9.27523795,181.41,181.35,2.759]
[1730191570023,9.27523795,181.41,181.32,3.9983]
[1730191570228,9.27523795,181.41,181.33,2.7593]
[1730191570416,25.82523795,181.44,181.33,2.7593]
[1730191570617,9.27523795,181.38,181.33,2.7593]
[1730191570816,9.27523795,181.38,181.32,3.9983]
[1730191571025,9.27523795,181.38,181.34,2.7592]
[1730191571924,9.27523795,181.41,181.36,2.7588]
[1730191572121,9.27523795,181.41,181.32,3.9983]
[1730191572526,9.27523795,181.41,181.36,2.7589]
[1730191572929,9.27523795,181.39,181.32,2.7172]
[1730191573124,9.27523795,181.39,181.34,2.7592]
[1730191574123,9.27523795,181.39,181.32,5.4766]
[1730191574326,9.27523795,181.39,181.32,2.7172]
[1730191574733,5.75960279,181.5,181.32,2.7172]
[1730191574734,9.27523795,181.41,181.32,2.7172]
[1730191575535,9.27523795,181.39,181.34,2.7592]
[1730191575937,9.27523795,181.39,181.32,2.7172]
[1730191576235,9.27523795,181.39,181.29,344.0]
[1730191576635,9.27523795,181.39,181.32,2.7594]
[1730191577136,9.27523795,181.39,181.29,344.0]
[1730191577329,12.00765749,181.4,181.29,344.0]
[1730191577529,9.27523795,181.4,181.29,344.0]
[1730191577728,9.27523795,181.4,181.35,2.759]
[1730191577932,9.27523795,181.4,181.29,344.0]
[1730191578136,11.9825337,181.4,181.29,344.0]
[1730191578531,9.27523795,181.4,181.29,344.0]
[1730191578724,9.27523795,181.4,181.34,2.7592]
[1730191579939,9.27523795,181.4,181.35,2.7591]
[1730191581034,9.27523795,181.44,181.29,353.27523795]
[1730191581238,12.00948761,181.44,181.29,353.27523795]
[1730191582036,12.00948761,181.44,181.33,2.7593]
[1730191582227,12.00948761,181.44,181.29,353.27523795]
[1730191582639,12.00948761,181.44,181.36,2.7588]
[1730191582934,3.9,181.43,181.29,353.27523795]
[1730191583144,3.9,181.43,181.36,2.7589]
[1730191586942,3.9,181.42,181.37,2.7588]
[1730191587647,3.9,181.41,181.34,9.27523795]
[1730191587843,3.9,181.41,181.35,3.9923]
[1730191588137,3.9,181.41,181.4,2.7584]
[1730191589644,2.73424966,181.44,181.4,2.7584]
[1730191589942,3.9,181.43,181.4,2.7584]
[1730191593433,3.9,181.43,181.35,3.9923]
[1730191593633,3.9,181.43,181.38,2.7587]
[1730191594542,5.93972582,181.4,181.38,2.7587]
[1730191594844,3.92,181.39,181.38,2.7587]
[1730191596647,3.92,181.39,181.37,2.7588]
[1730191597440,3.92,181.39,181.38,2.7587]
[1730191599846,3.92,181.39,181.37,5.93972582]
[1730191600050,1.7885,181.39,181.37,5.93972582]
[1730191600553,8.70343772,181.45,181.38,5.93972582]
[1730191600851,3.92,181.44,181.38,5.93972582]
[1730191601047,3.92,181.44,181.42,2.7579]
[1730191601351,3.92,181.44,181.38,5.93972582]
[1730191601544,3.92,181.44,181.4,5.93972582]
[1730191602849,3.92,181.44,181.43,2.7579]
[1730191604258,3.92,181.44,181.4,5.93972582]
[1730191604562,3.92,181.43,181.42,2.7579]
[1730191610166,3.92,181.43,181.35,347.9923]
[1730191610459,9.85972582,181.43,181.36,5.93972582]
[1730191610663,9.85972582,181.43,181.39,2.7584]
[1730191610869,9.85972582,181.43,181.36,5.93972582]
[1730191611360,9.85972582,181.43,181.37,5.93972582]
[1730191612058,9.85972582,181.43,181.41,2.7581]
[1730191613263,3.92,181.42,181.41,2.7581]
[1730191632572,5.93972582,181.45,181.42,2.758]
[1730191632780,3.88,181.44,181.42,2.758]
[1730191635880,5.93972582,181.43,181.35,2.6344]
[1730191636076,5.93972582,181.39,181.35,2.6344]
[1730191636279,3.88,181.38,181.34,5.93972582]
[1730191636479,3.88,181.38,181.35,2.7591]
[1730191636679,3.88,181.38,181.34,5.93972582]
[1730191637279,3.88,181.38,181.35,2.7591]
[1730191637482,5.93972582,181.36,181.33,344.0]
[1730191638285,5.93972582,181.36,181.34,2.7592]
[1730191638487,3.88,181.35,181.34,2.7592]
[1730191645394,9.81972582,181.35,181.34,2.7592]
[1730191648490,9.81972582,181.35,181.3,2.721]
[1730191648697,9.81972582,181.35,181.32,2.7595]
[1730191649194,5.93972582,181.33,181.32,2.7595]
[1730191650497,3.88,181.35,181.34,2.7593]
[1730191650795,9.81972582,181.35,181.34,2.7593]
[1730191651983,9.81972582,181.35,181.33,2.7594]
[1730191652188,5.93972582,181.34,181.33,2.7594]
[1730191654394,62.3163,181.42,181.37,2.7587]
[1730191654595,5.93972582,181.39,181.37,2.7587]
[1730191654794,5.93972582,181.39,181.33,5.93972582]
[1730191654993,5.93972582,181.37,181.32,5.93972582]
[1730191655198,3.86,181.36,181.32,5.93972582]
[1730191656305,3.86,181.36,181.35,2.7591]
[1730191658097,3.86,181.36,181.33,2.7594]
[1730191658396,3.86,181.36,181.31,7.23302582]
[1730191658592,9.79972582,181.36,181.31,1.2933]
[1730191658795,5.93972582,181.34,181.31,1.2933]
[1730191660200,5.93972582,181.34,181.33,2.7594]
[1730191662400,3.86,181.36,181.33,2.7594]
[1730191662597,5.93972582,181.35,181.33,2.7594]
[1730191664497,5.93972582,181.35,181.3,1.3345]
[1730191664703,5.93972582,181.35,181.32,2.7595]
[1730191665306,3.86,181.36,181.32,2.7595]
[1730191665307,5.93972582,181.33,181.32,2.7595]
[1730191673397,2.79039753,181.37,181.34,2.7591]
[1730191673603,3.86,181.36,181.34,2.7591]
[1730191674610,5.93972582,181.35,181.3,1.3345]
[1730191675003,5.93972582,181.33,181.3,1.3345]
[1730191675204,3.86,181.32,181.31,2.7597]
[1730191679115,10.21116141,181.41,181.35,2.759]
[1730191679311,10.21116141,181.41,181.31,5.93972582]
[1730191679312,5.93972582,181.38,181.31,5.93972582]
[1730191680012,5.93972582,181.38,181.35,2.759]
[1730191680310,9.79972582,181.37,181.35,2.759]
[1730191680516,3.86,181.36,181.35,2.759]
[1730191684420,12.54014959,181.36,181.27,345.3413]
[1730191684617,5.93972582,181.34,181.32,2.7596]
[1730191685614,12.54014959,181.36,181.3,5.93972582]
[1730191686522,5.93972582,181.38,181.32,5.93972582]
[1730191686719,3.84,181.37,181.32,5.93972582]
[1730191687115,3.84,181.37,181.35,2.759]
[1730191689120,3.84,181.37,181.34,2.7591]
[1730191689121,9.77972582,181.37,181.34,2.7591]
[1730191691826,12.58353422,181.37,181.34,2.7591]
[1730191694726,12.58353422,181.37,181.33,2.7594]
[1730191697031,6.6438084,181.37,181.33,2.7594]
[1730191697232,12.58353422,181.37,181.33,2.7594]
[1730191702232,9.77972582,181.37,181.33,2.7594]
[1730191702434,3.84,181.36,181.35,5.93972582]
[1730191702635,16.15632615,181.41,181.35,5.93972582]
[1730191702840,3.84,181.4,181.35,5.93972582]
[1730191703143,5.93972582,181.39,181.36,2.7589]
[1730191704029,5.93972582,181.39,181.36,0.47747696]
[1730191704232,5.93972582,181.39,181.34,5.93972582]
[1730191705240,5.93972582,181.39,181.36,2.7589]
[1730191705742,5.93972582,181.38,181.34,2.7591]
[1730191707940,5.50861162,181.37,181.33,2.7594]
[1730191708147,3.84,181.36,181.33,2.7594]
[1730191708945,12.53882582,181.36,181.32,2.7595]
[1730191715637,9.77972582,181.36,181.3,5.93972582]
[1730191715844,2.7592,181.35,181.31,2.7596]
[1730191716047,8.69892582,181.35,181.31,2.7596]
[1730191718747,8.69892582,181.35,181.32,2.7596]
[1730191722953,5.93972582,181.35,181.32,2.7596]
[1730191729258,3.82,181.34,181.32,2.7596]
[1730191736265,2.74981162,181.37,181.34,2.7592]
[1730191736457,3.82,181.36,181.33,5.93972582]
[1730191736658,3.82,181.36,181.34,5.93972582]